bitfinex/quotes_SOLUSD_20241223
["timestamp","ask_amount","ask_price","bid_price","bid_amount"]
[1734954958649,20.0,183.76,183.72,6.5351]
[1734954966767,20.0,183.77,183.72,6.5351]
[1734954975691,20.0,183.77,183.7,1.6518]
[1734954976304,20.0,183.74,183.7,1.6518]
[1734954980535,20.0,183.78,183.7,1.6518]
[1734954981821,11.78573927,183.81,183.71,6.5233]
[1734954983095,20.0,183.78,183.71,6.5233]
[1734954986222,23.776884,183.77,183.71,6.5233]
[1734954986410,20.0,183.74,183.71,6.5233]
[1734954987354,20.0,183.74,183.7,1.6518]
[1734954988019,20.0,183.75,183.7,1.6518]
[1734954993028,3.80115626,183.78,183.7,1.6518]
[1734954993228,20.0,183.79,183.7,1.6518]
[1734954996738,20.0,183.75,183.7,1.6518]
[1734954998073,20.0,183.75,183.67,7.1733019]
[1734954998074,20.0,183.71,183.67,7.1733019]
[1734954998264,20.0,183.71,183.67,0.6830019]
[1734955005871,28.84904745,183.71,183.67,0.6830019]
[1734955006179,20.0,183.68,183.67,0.6830019]
[1734955010664,2.14975604,183.73,183.67,0.6830019]
[1734955010868,8.86274371,183.75,183.67,0.6830019]
[1734955011556,13.93490716,183.75,183.67,0.6830019]
[1734955012196,20.0,183.72,183.67,0.6830019]
[1734955013077,16.12284434,183.75,183.67,0.6830019]
[1734955013384,23.776884,183.74,183.67,0.6830019]
[1734955013914,29.23409759,183.74,183.67,0.6830019]
[1734955014117,20.0,183.71,183.67,0.6830019]
[1734955023102,20.0,183.68,183.67,0.6830019]
[1734955032528,43.776884,183.68,183.6,1.5264]
[1734955032839,20.0,183.64,183.6,1.5264]
[1734955035004,20.0,183.65,183.6,1.5264]
[1734955035204,6.32854104,183.69,183.6,1.5264]
[1734955035399,6.50652074,183.74,183.6,1.5264]
[1734955035629,6.50652074,183.74,183.6,9.71862054]
[1734955036014,12.83158664,183.74,183.6,9.71862054]
[1734955036211,12.83158664,183.74,183.63,6.3478]
[1734955037927,12.83158664,183.74,183.64,1.5077]
[1734955038130,14.98491734,183.74,183.64,1.5077]
[1734955038301,12.83158664,183.74,183.64,1.5077]
[1734955039231,20.0,183.71,183.64,1.5077]
[1734955048642,3.80460375,183.71,183.64,1.5077]
[1734955048934,30.28340474,183.7,183.64,1.5077]
[1734955049129,20.0,183.67,183.64,1.5077]
[1734955050021,20.0,183.67,183.62,20.0]
[1734955051033,20.0,183.63,183.62,20.0]
[1734955051608,20.0,183.63,183.53,1.6236]
[1734955056342,20.0,183.62,183.53,1.6236]
[1734955057337,20.0,183.63,183.53,1.6236]
[1734955057539,12.47735083,183.73,183.54,0.81707606]
[1734955057722,4.39838622,183.69,183.56,8.0419]
[1734955057924,4.39838622,183.69,183.56,8.85875717]
[1734955058230,4.39838622,183.69,183.56,8.0419]
[1734955059143,20.0,183.67,183.56,8.0419]
[1734955059341,23.776884,183.66,183.56,8.0419]
[1734955060140,20.0,183.63,183.56,8.0419]
[1734955065759,20.0,183.65,183.56,8.0419]
[1734955072531,20.0,183.65,183.57,0.81685826]
[1734955086783,5.45721359,183.68,183.58,23.776884]
[1734955086977,12.38276625,183.72,183.6,39.88890454]
[1734955087186,8.38590645,183.72,183.61,9.00885019]
[1734955087672,8.38590645,183.72,183.61,0.81662965]
[1734955087855,20.7363653,183.75,183.61,0.81662965]
[1734955088052,1.04930715,183.74,183.61,0.81662965]
[1734955088256,6.50652074,183.74,183.61,0.81662965]
[1734955088454,12.83158664,183.74,183.61,0.81662965]
[1734955088665,20.0,183.71,183.61,0.81662965]
[1734955088977,20.0,183.71,183.62,23.776884]
[1734955090162,20.0,183.71,183.61,0.81662965]
[1734955090361,20.0,183.71,183.6,7.9198]
[1734955090559,20.0,183.67,183.6,7.9198]
[1734955105999,20.0,183.63,183.56,1.6312]
[1734955108974,20.0,183.62,183.56,1.6312]
[1734955109674,20.0,183.63,183.56,1.6312]
[1734955125287,20.0,183.63,183.57,0.81686408]
[1734955125601,20.0,183.67,183.57,0.81686408]
[1734955127987,20.0,183.67,183.56,1.6312]
[1734955128483,20.0,183.65,183.56,1.6312]
[1734955130403,5.45721359,183.7,183.58,7.8325]
[1734955130614,5.45721359,183.7,183.59,0.81673936]
[1734955131603,20.0,183.67,183.59,0.81673936]
[1734955134207,20.0,183.67,183.58,7.8325]
[1734955137890,23.776884,183.66,183.58,7.8325]
[1734955138097,20.0,183.63,183.58,1.5092]
[1734955138604,20.0,183.63,183.54,7.9042]
[1734955140495,20.0,183.63,183.54,8.72112144]
[1734955143524,20.0,183.63,183.5,1.5867]
[1734955143525,20.0,183.59,183.5,1.5867]
[1734955144293,11.14591378,183.62,183.51,9.00934083]
[1734955144501,20.0,183.63,183.52,7.5694]
[1734955144703,20.0,183.63,183.54,9.79672054]
[1734955144907,8.38590645,183.64,183.56,1.6045]
[1734955145107,8.38590645,183.64,183.57,0.81682768]
[1734955145704,6.69687437,183.67,183.57,0.81682768]
[1734955146401,6.69687437,183.67,183.56,138.3045]
[1734955148400,6.69687437,183.67,183.56,1.6045]
[1734955148997,20.0,183.64,183.56,1.6045]
[1734955149205,43.776884,183.63,183.56,1.6045]
[1734955149497,20.0,183.63,183.56,1.6045]
[1734955149705,20.0,183.59,183.56,1.6045]
[1734955154627,20.0,183.63,183.56,1.6045]
[1734955155424,20.0,183.62,183.56,1.6045]
[1734955165531,20.0,183.62,183.55,6.5429]
[1734955165920,20.0,183.61,183.55,6.5429]
[1734955166120,20.0,183.59,183.52,1.5635]
[1734955166321,20.0,183.58,183.52,1.5635]
[1734955178342,23.776884,183.6,183.52,1.5635]
[1734955179219,12.43719907,183.61,183.52,1.5635]
[1734955179621,20.0,183.58,183.52,1.5635]
[1734955184036,12.43719907,183.61,183.52,1.5635]
[1734955184243,4.9857018,183.65,183.54,6.6597]
[1734955184428,0.21924079,183.66,183.55,1.6086]
[1734955185743,26.91611516,183.66,183.55,1.6086]
[1734955191240,6.69687437,183.66,183.56,23.776884]
[1734955192649,20.0,183.63,183.56,23.776884]
[1734955193163,6.69687437,183.66,183.58,23.776884]
[1734955193455,8.38590645,183.71,183.58,23.776884]
[1734955193456,20.0,183.67,183.58,23.776884]
[1734955196025,6.69687437,183.7,183.6,6.6346]
[1734955196220,6.69687437,183.7,183.61,1.6213]
[1734955199749,6.69687437,183.7,183.62,23.776884]
[1734955200150,6.69687437,183.7,183.61,1.6213]
[1734955200631,6.5825328,183.72,183.61,1.6213]
[1734955200632,5.45081291,183.73,183.64,1.5056]
[1734955200835,6.69687437,183.77,183.64,1.5056]
[1734955202355,20.0,183.74,183.64,1.5056]
[1734955202653,6.69687437,183.77,183.64,1.5056]
[1734955202969,6.69687437,183.77,183.65,6.5414]
[1734955203171,6.69687437,183.77,183.67,23.776884]
[1734955203335,6.69687437,183.77,183.67,24.59324683]
[1734955203538,6.69687437,183.77,183.66,1.5548]
[1734955203855,20.0,183.74,183.66,1.5548]
[1734955208875,6.69687437,183.77,183.67,0.81650804]
[1734955209160,15.08278082,183.82,183.69,1.539]
[1734955209357,15.08278082,183.82,183.69,2.3552651]
[1734955209663,6.69687437,183.81,183.69,1.539]
[1734955210567,6.69687437,183.81,183.69,2.35525544]
[1734955210739,20.0,183.78,183.69,2.35525544]
[1734955212867,6.69687437,183.81,183.7,29.926384]
[1734955213167,11.51446859,183.83,183.71,10.58209279]
[1734955213361,5.45081291,183.83,183.72,14.40102054]
[1734955213552,6.69687437,183.86,183.63,84.20477343]
[1734955213553,6.69687437,183.86,183.74,176.52550454]
[1734955213746,6.69687437,183.86,183.76,1.6476]
[1734955214341,6.42884334,183.85,183.76,1.6476]
[1734955214548,1.81157178,183.84,183.72,1.6476]
[1734955214861,1.81157178,183.84,183.7,6.2088]
[1734955214862,5.53489099,183.83,183.7,6.2088]
[1734955215041,3.62314356,183.82,183.7,6.2088]
[1734955215366,43.776884,183.78,183.7,6.2088]
[1734955215555,23.776884,183.76,183.7,6.2088]
[1734955215757,20.0,183.73,183.7,6.2088]
[1734955215940,20.0,183.73,183.68,1.6476]
[1734955218780,25.96993245,183.8,183.68,1.6476]
[1734955219062,6.6378,183.85,183.69,7.37596626]
[1734955219244,6.6378,183.85,183.69,6.5596]
[1734955219443,1.81157178,183.81,183.69,6.5596]
[1734955220248,20.0,183.79,183.69,6.5596]
[1734955221065,21.81157178,183.82,183.7,1.5436]
[1734955221247,1.81157178,183.82,183.7,1.5436]
[1734955221667,21.81157178,183.82,183.7,2.35980819]
[1734955221971,1.81157178,183.82,183.7,2.35980819]
[1734955222366,4.88530259,183.85,183.72,6.196]
[1734955222568,4.88530259,183.85,183.73,1.6654]
[1734955222745,4.88530259,183.85,183.73,10.67367684]
[1734955222949,4.88530259,183.85,183.74,14.38822054]
[1734955223353,4.88530259,183.85,183.76,1.5579]
[1734955223550,6.69687437,183.87,183.76,1.5579]
[1734955224063,6.69687437,183.87,183.77,6.2301]
[1734955225365,20.0,183.84,183.77,6.2301]
[1734955227885,5.1547018,183.9,183.78,23.776884]
[1734955228177,20.0,183.93,183.78,39.06173165]
[1734955228344,20.0,183.92,183.78,39.06173165]
[1734955229375,20.0,183.92,183.79,6.384]
[1734955230077,24.9497004,183.92,183.79,6.384]
[1734955230256,20.0,183.89,183.79,6.384]
[1734955231178,20.0,183.89,183.8,23.776884]
[1734955231559,4.9497004,183.92,183.8,23.776884]
[1734955231763,4.9497004,183.92,183.81,1.6281]
[1734955232065,11.58354514,183.96,183.83,6.3575]
[1734955232861,5.1547018,183.96,183.85,1.6186]
[1734955233175,6.69687437,183.96,183.85,1.6186]
[1734955233369,6.42884334,183.95,183.85,1.6186]
[1734955234175,2.14664927,183.98,183.87,38.20494909]
[1734955234402,8.38590645,184.07,183.89,6.3218]
[1734955234694,7.73216524,184.0,183.89,6.3218]
[1734955235781,20.0,183.97,183.89,6.3218]
[1734955236186,23.776884,184.01,183.89,6.3218]
[1734955236362,20.0,183.98,183.89,6.3218]
[1734955236785,20.0,183.94,183.89,6.3218]
[1734955238058,20.0,183.9,183.87,1.6186]
[1734955239027,20.0,183.9,183.85,6.5979]
[1734955243316,2.14936796,183.96,183.85,6.5979]
[1734955243611,23.776884,183.96,183.85,6.5979]
[1734955244117,2.07064821,183.97,183.85,6.5979]
[1734955244411,11.2319095,183.99,183.85,6.5979]
[1734955244617,20.0,183.96,183.85,6.5979]
[1734955245689,20.0,183.92,183.85,6.5979]
[1734955246207,23.776884,183.91,183.85,6.5979]
[1734955247520,20.0,183.92,183.85,6.5979]
[1734955247892,23.776884,183.91,183.85,6.5979]
[1734955248206,23.776884,183.87,183.83,1.5035]
[1734955249293,20.0,183.84,183.83,1.5035]
[1734955250727,20.0,183.84,183.81,6.1188]
[1734955250899,23.776884,183.83,183.79,1.5335]
[1734955255693,20.0,183.8,183.77,6.627]
[1734955256824,20.0,183.8,183.75,1.6547]
[1734955264089,10.10137869,183.88,183.75,1.6547]
[1734955264090,20.0,183.85,183.75,1.6547]
[1734955265219,23.776884,183.84,183.75,1.6547]
[1734955265517,20.0,183.81,183.75,1.6547]
[1734955266417,23.776884,183.8,183.75,1.6547]
[1734955266632,20.0,183.77,183.72,6.2437]
[1734955267726,23.776884,183.82,183.72,6.2437]
[1734955267897,20.0,183.79,183.72,6.2437]
[1734955268222,20.0,183.79,183.72,7.05987285]
[1734955268422,7.79578306,183.85,183.72,7.05987285]
[1734955268423,20.0,183.83,183.72,7.05987285]
[1734955268799,20.0,183.79,183.72,6.2437]
[1734955274127,20.0,183.83,183.73,0.81618492]
[1734955275319,23.776884,183.82,183.73,0.81618492]
[1734955275722,20.0,183.79,183.73,0.81618492]
[1734955277237,20.0,183.82,183.73,0.81618492]
[1734955277407,23.776884,183.85,183.74,9.86488324]
[1734955277607,5.1547018,183.86,183.76,6.2651]
[1734955277939,10.02910645,183.9,183.77,0.81593574]
[1734955278837,20.0,183.88,183.77,0.81593574]
[1734955279009,1.6432,183.9,183.77,0.81593574]
[1734955279510,23.776884,183.89,183.77,0.81593574]
[1734955280350,20.0,183.86,183.77,0.81593574]
[1734955281934,23.776884,183.85,183.77,0.81593574]
[1734955282238,23.776884,183.85,183.76,6.2651]
[1734955283437,20.0,183.82,183.76,6.2651]
[1734955290250,23.776884,183.81,183.76,6.2651]
[1734955293734,20.0,183.78,183.74,1.6642]
[1734955295751,20.0,183.74,183.71,6.4805]
[1734955295925,20.0,183.74,183.69,1.6059]
[1734955299241,5.1547018,183.79,183.69,1.6059]
[1734955299558,10.57014632,183.8,183.69,1.6059]
[1734955299559,8.38590645,183.8,183.69,15.22927559]
[1734955300331,8.38590645,183.8,183.7,12.80698139]
[1734955300532,13.54060825,183.84,183.71,0.81617064]
[1734955300759,20.0,183.81,183.71,0.81617064]
[1734955302961,20.0,183.81,183.71,13.62315203]
[1734955303167,20.0,183.81,183.72,6.3929]
[1734955305346,23.776884,183.8,183.72,6.3929]
[1734955305836,20.0,183.77,183.72,6.3929]
[1734955308068,20.0,183.81,183.72,6.3929]
[1734955308570,20.0,183.81,183.72,7.20907845]
[1734955310464,20.0,183.81,183.73,1.6543]
[1734955310671,20.0,183.82,183.74,0.81605167]
[1734955310847,20.0,183.83,183.74,0.81605167]
[1734955313881,20.0,183.83,183.73,1.6543]
[1734955321178,20.0,183.79,183.73,1.6543]
[1734955321491,20.0,183.75,183.69,1.5462]
[1734955323590,20.0,183.71,183.64,7.6852]
[1734955323892,23.776884,183.7,183.64,7.6852]
[1734955324209,20.0,183.67,183.64,7.6852]
[1734955325356,20.0,183.67,183.6,6.5494]
[1734955325786,23.776884,183.66,183.59,1.6232]
[1734955325966,20.0,183.63,183.59,1.6232]
[1734955327097,20.0,183.63,183.56,6.556]
[1734955328783,20.0,183.63,183.54,1.5612]
[1734955328992,20.0,183.59,183.54,1.5612]
[1734955332091,20.0,183.55,183.49,0.6830019]
[1734955334492,1.5182,183.61,183.49,1.50031029]
[1734955334864,22.17424456,183.62,183.49,1.50031029]
[1734955335267,2.17424456,183.62,183.5,12.83534828]
[1734955335486,1.5503,183.64,183.49,13.51835018]
[1734955336199,6.42140907,183.64,183.49,13.51835018]
[1734955336496,20.0,183.62,183.49,0.6830019]
[1734955336798,20.0,183.58,183.49,0.6830019]
[1734955339376,23.776884,183.62,183.49,0.6830019]
[1734955339593,20.0,183.59,183.49,0.6830019]
[1734955341604,20.0,183.55,183.49,0.6830019]
[1734955342298,20.0,183.51,183.49,0.6830019]
[1734955343699,23.776884,183.5,183.49,0.6830019]
[1734955345191,22.2224293,183.53,183.49,0.6830019]
[1734955345518,7.8366,183.56,183.49,0.6830019]
[1734955345519,1.6507,183.56,183.49,0.6830019]
[1734955345798,8.2309,183.61,183.49,0.6830019]
[1734955346001,12.14734353,183.59,183.49,0.6830019]
[1734955346590,4.25352862,183.59,183.5,1.5227]
[1734955346798,1.6384,183.61,183.5,1.5227]
[1734955347203,7.09802725,183.61,183.5,1.5227]
[1734955347904,20.0,183.58,183.5,1.5227]
[1734955348107,20.0,183.57,183.5,1.5227]
[1734955348412,20.0,183.53,183.5,1.5227]
[1734955349175,20.0,183.53,183.49,0.6830019]
[1734955352508,20.0,183.58,183.49,0.6830019]
[1734955353020,7.09802725,183.61,183.49,0.6830019]
[1734955354187,23.776884,183.6,183.49,0.6830019]
[1734955354623,20.0,183.57,183.49,0.6830019]
[1734955356000,20.0,183.53,183.49,0.6830019]
[1734955359913,20.0,183.58,183.49,0.6830019]
[1734955361311,20.0,183.54,183.49,0.6830019]
[1734955362625,20.0,183.5,183.49,0.6830019]
[1734955363918,43.776884,183.5,183.49,0.6830019]
[1734955367337,20.0,183.46,183.42,1.5572]
[1734955369823,23.776884,183.51,183.42,1.5572]
[1734955370129,20.0,183.48,183.42,1.5572]
[1734955375822,20.0,183.52,183.42,1.5572]
[1734955379340,23.776884,183.51,183.37,8.99662737]
[1734955379637,20.0,183.48,183.39,8.23149385]
[1734955380708,20.0,183.48,183.37,17.22812122]
[1734955381332,23.776884,183.47,183.37,8.1791]
[1734955381645,23.776884,183.5,183.38,0.81779657]
[1734955381825,20.0,183.47,183.38,9.04929042]
[1734955382330,20.0,183.47,183.38,0.81779657]
[1734955382835,5.45962725,183.55,183.41,8.23149385]
[1734955383046,15.38610095,183.57,183.42,8.23149385]
[1734955383251,15.38610095,183.57,183.43,2.47733383]
[1734955383621,11.29172634,183.57,183.43,2.47733383]
[1734955384741,20.0,183.53,183.43,2.47733383]
[1734955385828,20.0,183.53,183.44,6.2438]
[1734955389330,20.0,183.53,183.44,7.06124749]
[1734955390971,20.0,183.55,183.45,32.00837785]
[1734955391164,20.0,183.57,183.46,0.81729136]
[1734955392164,20.0,183.53,183.44,7.06113316]
[1734955392760,20.0,183.57,183.45,23.776884]
[1734955393053,20.0,183.57,183.46,0.81729075]
[1734955393357,20.0,183.57,183.45,23.776884]
[1734955393866,20.0,183.57,183.45,24.5942112]
[1734955394567,23.776884,183.56,183.45,0.8173272]
[1734955394775,20.0,183.53,183.44,6.2438]
[1734955395084,20.0,183.53,183.44,14.47529385]
[1734955395570,20.0,183.53,183.44,6.2438]
[1734955397573,20.0,183.49,183.39,7.5986]
[1734955399370,20.0,183.45,183.39,7.5986]
[1734955400262,20.0,183.47,183.39,7.5986]
[1734955401173,20.0,183.49,183.39,7.5986]
[1734955401476,20.0,183.45,183.39,1.5942]
[1734955403689,20.0,183.41,183.35,7.7824]
[1734955410193,4.87110907,183.48,183.36,8.23149385]
[1734955410382,2.16357402,183.5,183.36,8.23149385]
[1734955410588,1.6437,183.51,183.36,8.23149385]
[1734955410786,1.6437,183.51,183.36,23.776884]
[1734955411487,20.0,183.49,183.36,23.776884]
[1734955411694,43.776884,183.48,183.35,7.7824]
[1734955421406,8.1795,183.47,183.34,10.0]
[1734955421616,20.0,183.4,183.34,10.0]
[1734955422403,23.776884,183.39,183.34,10.0]
[1734955422601,20.0,183.36,183.34,10.0]
[1734955422808,20.0,183.4,183.34,10.0]
[1734955423005,23.776884,183.39,183.34,10.0]
[1734955423216,20.0,183.36,183.34,10.0]
[1734955428522,20.0,183.4,183.34,10.0]
[1734955429223,20.0,183.39,183.34,10.0]
[1734955430027,20.0,183.39,183.35,6.6337]
[1734955430922,20.0,183.39,183.34,10.0]
[1734955434428,23.776884,183.43,183.34,10.0]
[1734955434611,20.0,183.4,183.34,10.0]
[1734955438633,20.0,183.44,183.34,10.0]
[1734955439623,2.45949139,183.46,183.34,10.8178982]
[1734955439820,4.89358849,183.47,183.37,1.5263]
[1734955441201,20.0,183.46,183.37,1.5263]
[1734955443227,4.89358849,183.47,183.37,1.5263]
[1734955443430,7.78537604,183.56,183.4,8.23149385]
[1734955443637,7.78537604,183.56,183.42,8.23149385]
[1734955443808,4.09633611,183.55,183.43,9.04894231]
[1734955444006,4.09633611,183.55,183.44,6.3352]
[1734955444235,8.38590645,183.56,183.45,0.81735525]
[1734955444405,8.38590645,183.56,183.44,6.3352]
[1734955444809,6.26259987,183.59,183.44,6.3352]
[1734955445109,2.16626376,183.59,183.44,6.3352]
[1734955445319,5.16712786,183.6,183.44,6.3352]
[1734955445518,23.776884,183.59,183.44,6.3352]
[1734955445709,20.0,183.56,183.44,6.3352]
[1734955450136,20.0,183.56,183.45,1.6495]
[1734955452019,20.0,183.52,183.45,1.6495]
[1734955453337,20.0,183.48,183.45,1.6495]
[1734955455434,0.52952554,183.54,183.45,1.6495]
[1734955455736,20.0,183.51,183.45,1.6495]
[1734955457518,20.0,183.47,183.4,1.6228]
[1734955459226,20.0,183.43,183.4,1.6228]
[1734955460162,20.0,183.47,183.4,1.6228]
[1734955460341,20.0,183.43,183.4,1.6228]
[1734955461137,23.776884,183.46,183.4,1.6228]
[1734955461321,20.0,183.43,183.4,1.6228]
[1734955462137,23.776884,183.46,183.4,1.6228]
[1734955462759,20.0,183.43,183.4,1.6228]
[1734955466339,20.0,183.43,183.4,1.7539777]
[1734955477655,6.22627599,183.5,183.4,1.7539777]
[1734955478037,10.05900957,183.51,183.4,1.7539777]
[1734955478442,12.26948988,183.51,183.4,1.7539777]
[1734955478843,3.87969067,183.51,183.4,1.7539777]
[1734955479040,23.776884,183.53,183.4,1.7539777]
[1734955480338,20.0,183.5,183.4,1.7539777]
[1734955496678,20.0,183.5,183.4,2.57160613]
[1734955498462,5.16712786,183.54,183.43,23.776884]
[1734955498764,13.62408006,183.57,183.46,6.5695]
[1734955498982,13.62408006,183.57,183.47,0.81725093]
[1734955499394,5.16712786,183.57,183.47,0.81725093]
[1734955500270,5.16712786,183.57,183.46,6.5695]
[1734955500952,20.0,183.54,183.46,6.5695]
[1734955501156,20.0,183.5,183.46,6.5695]
[1734955502182,20.0,183.54,183.46,6.5695]
[1734955503061,13.62408006,183.57,183.46,6.5695]
[1734955503583,5.16712786,183.57,183.46,6.5695]
[1734955504186,20.0,183.54,183.46,6.5695]
[1734955504680,20.0,183.53,183.46,6.5695]
[1734955505289,5.16712786,183.57,183.46,6.5695]
[1734955505290,20.0,183.54,183.46,6.5695]
[1734955505454,20.0,183.54,183.47,26.18083795]
[1734955505656,19.1015223,183.6,183.47,26.18083795]
[1734955505657,8.4569522,183.6,183.49,23.776884]
[1734955505864,8.4569522,183.6,183.5,8.1636]
[1734955506576,5.16712786,183.62,183.5,8.1636]
[1734955507996,20.0,183.59,183.5,8.1636]
[1734955508205,20.0,183.55,183.5,8.1636]
[1734955511569,5.16712786,183.59,183.5,8.1636]
[1734955511771,20.0,183.56,183.5,8.1636]
[1734955511972,20.0,183.56,183.5,8.98072201]
[1734955512186,5.16712786,183.63,183.5,8.1636]
[1734955512794,11.39340385,183.63,183.5,8.1636]
[1734955513287,23.776884,183.62,183.5,8.1636]
[1734955513472,20.0,183.59,183.5,8.1636]
[1734955517282,23.776884,183.58,183.5,8.1636]
[1734955517496,20.0,183.55,183.5,8.1636]
[1734955517878,23.776884,183.54,183.46,6.1467]
[1734955518084,20.0,183.51,183.46,6.1467]
[1734955526615,20.0,183.54,183.46,6.1467]
[1734955526814,10.34054269,183.57,183.46,6.1467]
[1734955527123,5.16712786,183.57,183.46,6.1467]
[1734955528116,5.16712786,183.57,183.47,0.81727218]
[1734955528316,2.12979032,183.6,183.47,0.81727218]
[1734955528494,5.16712786,183.61,183.47,0.81727218]
[1734955528697,11.39340385,183.61,183.47,0.81727218]
[1734955529127,20.0,183.58,183.47,0.81727218]
[1734955530334,20.0,183.58,183.48,1.5547]
[1734955530707,8.4569522,183.64,183.51,1.5547]
[1734955530904,8.4569522,183.64,183.51,2.37175475]
[1734955531204,8.4569522,183.64,183.51,10.60655593]
[1734955531405,8.4569522,183.64,183.51,2.37175475]
[1734955531626,15.41046269,183.66,183.51,2.37175475]
[1734955532337,20.0,183.63,183.51,2.37175475]
[1734955532827,20.0,183.63,183.52,23.776884]
[1734955533035,20.0,183.63,183.53,0.81696645]
[1734955533408,20.0,183.63,183.52,23.776884]
[1734955534425,20.0,183.63,183.52,24.59390788]
[1734955535254,20.0,183.63,183.53,6.2457]
[1734955535409,20.0,183.63,183.54,0.81694192]
[1734955535614,20.0,183.63,183.55,25.433884]
[1734955535815,21.36305778,183.71,183.56,0.81686176]
[1734955536029,21.36305778,183.71,183.57,6.2457]
[1734955536331,13.62408006,183.71,183.57,6.2457]
[1734955536510,5.16712786,183.71,183.57,6.2457]
[1734955537132,23.776884,183.7,183.57,6.2457]
[1734955537340,20.0,183.67,183.57,6.2457]
[1734955539518,20.0,183.68,183.58,34.413352]
[1734955539719,23.776884,183.72,183.58,34.413352]
[1734955540319,23.776884,183.73,183.58,34.413352]
[1734955540819,23.776884,183.73,183.58,26.17855082]
[1734955542045,20.0,183.7,183.58,34.413352]
[1734955542345,20.0,183.7,183.58,26.17855082]
[1734955542843,20.0,183.7,183.58,34.413352]
[1734955543053,2.17580316,183.73,183.6,25.298984]
[1734955543245,5.16712786,183.76,183.63,7.6238]
[1734955543447,5.16712786,183.76,183.63,8.44027984]
[1734955544649,5.16712786,183.76,183.64,23.776884]
[1734955545149,20.0,183.73,183.64,23.776884]
[1734955546143,1.6574,183.88,183.7,1.5993]
[1734955546320,9.81408005,183.85,183.71,6.5807]
[1734955546525,7.69451769,183.85,183.72,32.01168518]
[1734955546735,50.74171324,183.86,183.73,0.81608749]
[1734955546936,50.74171324,183.86,183.74,1.6208]
[1734955547553,2.17880074,183.88,183.74,1.6208]
[1734955547753,23.776884,183.89,183.74,1.6208]
[1734955547928,23.776884,183.88,183.74,1.6208]
[1734955548750,30.00315999,183.88,183.74,1.6208]
[1734955549752,20.0,183.85,183.74,1.6208]
[1734955551248,20.0,183.85,183.75,6.4553]
[1734955555446,20.0,183.81,183.75,6.4553]
[1734955556258,20.0,183.77,183.75,6.4553]
[1734955556660,20.0,183.77,183.71,6.2367]
[1734955557042,23.776884,183.76,183.71,6.2367]
[1734955557243,20.0,183.73,183.71,6.2367]
[1734955557662,20.0,183.82,183.71,6.2367]
[1734955558256,20.0,183.78,183.71,6.2367]
[1734955558755,23.776884,183.77,183.71,6.2367]
[1734955558961,20.0,183.74,183.71,6.2367]
[1734955561474,20.0,183.74,183.69,1.6195]
[1734955564573,23.776884,183.73,183.66,6.154]
[1734955564749,20.0,183.7,183.66,6.154]
[1734955565074,20.0,183.7,183.64,1.5543]
[1734955565302,20.0,183.66,183.64,1.5543]
[1734955565449,20.0,183.66,183.59,1.5543]
[1734955565648,20.0,183.62,183.59,1.5543]
[1734955566267,20.0,183.68,183.59,1.5543]
[1734955566673,23.776884,183.67,183.59,1.5543]
[1734955566874,20.0,183.64,183.59,1.5543]
[1734955567265,23.776884,183.63,183.59,1.5543]
[1734955567567,20.0,183.64,183.59,1.5543]
[1734955569560,20.0,183.68,183.59,1.5543]
[1734955576676,22.20114468,183.71,183.59,2.37104858]
[1734955576893,22.20114468,183.71,183.59,1.5543]
[1734955577802,3.29230941,183.74,183.6,23.776884]
[1734955577970,6.22627599,183.75,183.62,1.6566]
[1734955578686,8.38974404,183.75,183.62,1.6566]
[1734955579061,4.59298397,183.79,183.63,23.776884]
[1734955579291,4.59298397,183.79,183.65,1.6206]